lending/lending_fUSD_20241214
["ID","MTS","AMOUNT","RATE_DAILY","PERIOD"]
[345347898,1734168639380,-500.0,0.00021249,3]
[345347899,1734168639389,-728.74,0.00021249,3]
[345347900,1734168639400,-500.0,0.00021249,3]
[345347901,1734168639409,-654.05,0.00021249,2]
[345347902,1734168639419,-500.0,0.00021249,3]
[345347903,1734168639428,-500.0,0.00021249,3]
[345347904,1734168639437,-500.0,0.00021249,3]
[345347905,1734168639447,-500.0,0.00021249,3]
[345347906,1734168639456,-500.0,0.00021249,3]
[345347907,1734168639465,-500.0,0.00021249,3]
[345347908,1734168639474,-500.0,0.00021249,3]
[345347909,1734168639484,-500.0,0.00021249,3]
[345347910,1734168639493,-459.26,0.00021249,3]
[345347911,1734168639503,-167.13185224,0.00021249,3]
[345347912,1734168639513,-500.0,0.00021249,3]
[345347913,1734168639522,-500.0,0.00021249,3]
[345347914,1734168639532,-500.0,0.00021249,3]
[345347915,1734168639541,-500.0,0.00021249,3]
[345347916,1734168639551,-500.0,0.00021249,3]
[345347917,1734168639560,-500.0,0.00021249,3]
[345347918,1734168639570,-500.0,0.00021249,3]
[345347919,1734168639579,-500.0,0.00021249,3]
[345347920,1734168639589,-500.0,0.00021249,3]
[345347921,1734168639598,-500.0,0.00021249,3]
[345347922,1734168639608,-500.0,0.00021249,3]
[345347923,1734168639617,-500.0,0.00021249,3]
[345347924,1734168639626,-500.0,0.00021249,3]
[345347925,1734168639636,-500.0,0.00021249,3]
[345347926,1734168639647,-500.0,0.00021249,3]
[345347927,1734168639656,-500.0,0.00021249,3]
[345347928,1734168639666,-500.0,0.00021249,3]
[345347929,1734168639675,-500.0,0.00021249,3]
[345347930,1734168639685,-500.0,0.00021249,3]
[345347931,1734168639694,-500.0,0.00021249,3]
[345347932,1734168639704,-500.0,0.00021249,3]
[345347933,1734168639714,-553.23,0.00021249,3]
[345347934,1734168639723,-500.0,0.00021249,3]
[345347935,1734168639733,-500.0,0.00021249,3]
[345347936,1734168639743,-500.0,0.00021249,3]
[345347937,1734168639752,-604.31,0.00021249,3]
[345347938,1734168639762,-207.7866531,0.00021249,3]
[345347940,1734168639772,-571.21264844,0.00021249,3]
[345347941,1734168639781,-500.0,0.00021249,3]
[345347942,1734168639791,-500.0,0.00021249,3]
[345347943,1734168639801,-207.3,0.00021249,3]
[345347944,1734168639811,-500.0,0.00021249,3]
[345347945,1734168639821,-500.0,0.00021249,3]
[345347946,1734168639831,-500.0,0.00021249,3]
[345347948,1734168639840,-619.34,0.00021249,3]
[345347949,1734168639849,-500.0,0.00021249,3]
[345347950,1734168639858,-500.0,0.00021249,3]
[345347951,1734168639868,-500.0,0.00021249,3]
[345347952,1734168639878,-586.55,0.00021249,3]
[345347953,1734168639887,-500.0,0.00021249,3]
[345347954,1734168639899,-500.0,0.00021249,3]
[345347956,1734168639909,-500.0,0.00021249,3]
[345347957,1734168639919,-500.0,0.00021249,3]
[345347958,1734168639928,-500.0,0.00021249,3]
[345347959,1734168639938,-500.0,0.00021249,3]
[345347960,1734168639947,-525.33,0.00021249,3]
[345347961,1734168639957,-500.0,0.00021249,3]
[345347962,1734168639966,-500.0,0.00021249,3]
[345347963,1734168639975,-500.0,0.00021249,3]
[345347964,1734168639985,-500.0,0.00021249,3]
[345347965,1734168639996,-500.0,0.00021249,3]
[345347966,1734168640006,-500.0,0.00021249,3]
[345347967,1734168640015,-500.0,0.00021249,3]
[345347968,1734168640025,-500.0,0.00021249,3]
[345347969,1734168640034,-500.0,0.00021249,3]
[345347970,1734168640044,-500.0,0.00021249,3]
[345347971,1734168640054,-500.0,0.00021249,3]
[345347972,1734168640063,-500.0,0.00021249,3]
[345347973,1734168640073,-500.0,0.00021249,3]
[345347974,1734168640083,-500.0,0.00021249,3]
[345347975,1734168640092,-500.0,0.00021249,3]
[345347976,1734168640102,-500.0,0.00021249,3]
[345347977,1734168640113,-500.0,0.00021249,3]
[345347978,1734168640124,-500.0,0.00021249,3]
[345347979,1734168640134,-500.0,0.00021249,3]
[345347980,1734168640144,-500.0,0.00021249,3]
[345347981,1734168640153,-294.67,0.00021249,3]
[345347982,1734168640163,-500.0,0.00021249,3]
[345347983,1734168640173,-500.0,0.00021249,3]
[345347984,1734168640182,-500.0,0.00021249,3]
[345347985,1734168640191,-192.9,0.00021249,3]
[345347986,1734168640200,-500.0,0.00021249,3]
[345347987,1734168640210,-500.0,0.00021249,3]
[345347988,1734168640230,-500.0,0.00021249,3]
[345347989,1734168640240,-298.78277955,0.00021249,3]
[345347990,1734168640250,-500.0,0.00021249,3]
[345347991,1734168640259,-512.3,0.00021249,3]
[345347992,1734168640269,-500.0,0.00021249,3]
[345347993,1734168640278,-373.05,0.00021249,3]
[345347994,1734168640287,-533.32,0.00021249,3]
[345347995,1734168640297,-500.0,0.00021249,3]
[345347996,1734168640307,-500.0,0.00021249,3]
[345347997,1734168640316,-500.0,0.00021249,3]
[345347998,1734168640327,-500.0,0.00021249,3]
[345347999,1734168640336,-500.0,0.00021249,3]
[345348000,1734168640346,-500.0,0.00021249,3]
[345348001,1734168640356,-500.0,0.00021249,3]
[345348002,1734168640366,-500.0,0.00021249,3]
[345348003,1734168640375,-500.0,0.00021249,3]
[345348004,1734168640385,-500.0,0.00021249,3]
[345348005,1734168640395,-500.0,0.00021249,3]
[345348006,1734168640405,-500.0,0.00021249,3]
[345348007,1734168640414,-500.0,0.00021249,3]
[345348008,1734168640424,-500.0,0.00021249,3]
[345348009,1734168640435,-500.0,0.00021249,3]
[345348010,1734168640444,-500.0,0.00021249,3]
[345348011,1734168640454,-500.0,0.00021249,3]
[345348012,1734168640464,-500.0,0.00021249,3]
[345348013,1734168640474,-498.41,0.00021249,3]
[345348014,1734168640485,-500.0,0.00021249,3]
[345348015,1734168640495,-500.0,0.00021249,3]
[345348016,1734168640505,-500.0,0.00021249,3]
[345348017,1734168640515,-500.0,0.00021249,3]
[345348018,1734168640525,-500.0,0.00021249,3]
[345348019,1734168640535,-500.0,0.00021249,3]
[345348020,1734168640545,-500.0,0.00021249,3]
[345348021,1734168640555,-185.66,0.00021249,3]
[345348022,1734168640566,-500.0,0.00021249,3]
[345348023,1734168640576,-500.0,0.00021249,3]
[345348024,1734168640585,-500.0,0.00021249,3]
[345348025,1734168640595,-500.0,0.00021249,3]
[345348026,1734168640604,-500.0,0.00021249,3]
[345348027,1734168640614,-500.0,0.00021249,3]
[345348028,1734168640624,-500.0,0.00021249,3]
[345348029,1734168640634,-641.58,0.00021249,3]
[345348030,1734168640645,-500.0,0.00021249,3]
[345348031,1734168640655,-500.0,0.00021249,3]
[345348032,1734168640665,-500.0,0.00021249,3]
[345348033,1734168640675,-500.0,0.00021249,3]
[345348034,1734168640684,-500.0,0.00021249,3]
[345348035,1734168640694,-500.0,0.00021249,3]
[345348036,1734168640704,-500.0,0.00021249,3]
[345348037,1734168640715,-500.0,0.00021249,3]
[345348038,1734168640724,-500.0,0.00021249,3]
[345348039,1734168640733,-474.56377423,0.00021249,3]
[345348040,1734168640742,-500.0,0.00021249,3]
[345348041,1734168640751,-500.0,0.00021249,3]
[345348042,1734168640761,-500.0,0.00021249,3]
[345348043,1734168640771,-500.0,0.00021249,3]
[345348044,1734168640781,-500.0,0.00021249,3]
[345348045,1734168640791,-623.22,0.00021249,3]
[345348046,1734168640802,-500.0,0.00021249,3]
[345348047,1734168640812,-500.0,0.00021249,3]
[345348048,1734168640821,-500.0,0.00021249,3]
[345348049,1734168640830,-500.0,0.00021249,3]
[345348050,1734168640839,-500.0,0.00021249,3]
[345348051,1734168640849,-500.0,0.00021249,3]
[345348052,1734168640859,-500.0,0.00021249,3]
[345348053,1734168640869,-544.93,0.00021249,3]
[345348054,1734168640879,-500.0,0.00021249,3]
[345348055,1734168640890,-500.0,0.00021249,3]
[345348056,1734168640901,-500.0,0.00021249,3]
[345348057,1734168640911,-500.0,0.00021249,3]
[345348058,1734168640920,-500.0,0.00021249,3]
[345348059,1734168640930,-500.0,0.00021249,3]
[345348060,1734168640940,-500.0,0.00021249,3]
[345348061,1734168640950,-500.0,0.00021249,3]
[345348062,1734168640960,-500.0,0.00021249,3]
[345348063,1734168640970,-630.5,0.00021249,3]
[345348064,1734168640980,-500.0,0.00021249,3]
[345348065,1734168640990,-500.0,0.00021249,3]
[345348066,1734168641000,-500.0,0.00021249,3]
[345348067,1734168641009,-420.27890721,0.00021249,3]
[345348068,1734168641019,-500.0,0.00021249,3]
[345348069,1734168641029,-500.0,0.00021249,3]
[345348070,1734168641038,-500.0,0.00021249,3]
[345348071,1734168641048,-500.0,0.00021249,3]
[345348072,1734168641057,-500.0,0.00021249,3]
[345348073,1734168641067,-500.0,0.00021249,3]
[345348074,1734168641076,-500.0,0.00021249,3]
[345348075,1734168641086,-348.06,0.00021249,3]
[345348076,1734168641096,-500.0,0.00021249,3]
[345348077,1734168641105,-500.0,0.00021249,3]
[345348078,1734168641118,-500.0,0.00021249,3]
[345348079,1734168641127,-500.0,0.00021249,3]
[345348080,1734168641137,-500.0,0.00021249,3]
[345348081,1734168641147,-500.0,0.00021249,3]
[345348082,1734168641157,-500.0,0.00021249,3]
[345348083,1734168641166,-456.16,0.00021249,3]
[345348084,1734168641175,-500.0,0.00021249,3]
[345348085,1734168641184,-631.72,0.00021249,3]
[345348086,1734168641193,-500.0,0.00021249,3]
[345348087,1734168641203,-500.0,0.00021249,3]
[345348088,1734168641213,-604.81,0.00021249,3]
[345348089,1734168641222,-500.0,0.00021249,3]
[345348090,1734168641231,-500.0,0.00021249,3]
[345348091,1734168641241,-500.0,0.00021249,3]
[345348092,1734168641251,-500.0,0.00021249,3]
[345348093,1734168641261,-500.0,0.00021249,3]
[345348094,1734168641272,-500.0,0.00021249,3]
[345348095,1734168641282,-500.12887601,0.00021249,3]
[345348096,1734168641291,-500.0,0.00021249,3]
[345348097,1734168641300,-500.0,0.00021249,3]
[345348098,1734168641310,-500.0,0.00021249,3]
[345348099,1734168641319,-500.0,0.00021249,3]
[345348100,1734168641328,-500.0,0.00021249,3]
[345348101,1734168641338,-500.0,0.00021249,3]
[345348102,1734168641348,-2813.65766006,0.00021249,3]
[345348103,1734168641357,-500.0,0.00021249,3]
[345348104,1734168641367,-500.0,0.00021249,3]
[345348105,1734168641376,-500.0,0.00021249,3]
[345348106,1734168641387,-1174.68857,0.00021249,2]
[345348107,1734168641398,-500.0,0.00021249,3]
[345348108,1734168641407,-479.26,0.00021249,3]
[345348109,1734168641417,-500.0,0.00021249,3]
[345348110,1734168641426,-500.0,0.00021249,3]
[345348111,1734168641435,-500.0,0.00021249,3]
[345348112,1734168641444,-500.0,0.00021249,3]
[345348113,1734168641453,-500.0,0.00021249,3]
[345348114,1734168641463,-500.0,0.00021249,3]
[345348115,1734168641473,-500.0,0.00021249,3]
[345348116,1734168641482,-500.0,0.00021249,3]
[345348117,1734168641491,-500.0,0.00021249,3]
[345348118,1734168641501,-426.16,0.00021249,3]
[345348119,1734168641511,-500.0,0.00021249,3]
[345348120,1734168641520,-500.0,0.00021249,3]
[345348121,1734168641530,-500.0,0.00021249,3]
[345348122,1734168641540,-500.0,0.00021249,3]
[345348123,1734168641549,-500.0,0.00021249,3]
[345348124,1734168641559,-500.0,0.00021249,3]
[345348125,1734168641568,-500.0,0.00021249,3]
[345348126,1734168641578,-591.15201719,0.00021249,3]
[345348127,1734168641587,-507.58,0.00021249,3]
[345348128,1734168641597,-268.45,0.00021249,3]
[345348129,1734168641606,-500.0,0.00021249,3]
[345348130,1734168641616,-500.0,0.00021249,3]
[345348131,1734168641626,-176.21,0.00021249,3]
[345348132,1734168641636,-500.0,0.00021249,3]
[345348133,1734168641647,-500.0,0.00021249,3]
[345348134,1734168641657,-210.2,0.00021249,3]
[345348135,1734168641666,-500.0,0.00021249,3]
[345348136,1734168641676,-500.0,0.00021249,3]
[345348137,1734168641686,-500.0,0.00021249,3]
[345348138,1734168641695,-500.0,0.00021249,3]
[345348139,1734168641705,-500.0,0.00021249,3]
[345348140,1734168641715,-500.0,0.00021249,3]
[345348141,1734168641724,-500.0,0.00021249,3]
[345348142,1734168641734,-500.0,0.00021249,3]
[345348143,1734168641743,-500.0,0.00021249,3]
[345348144,1734168641753,-448.32,0.00021249,3]
[345348145,1734168641762,-500.0,0.00021249,3]
[345348146,1734168641771,-500.0,0.00021249,3]
[345348147,1734168641781,-500.0,0.00021249,3]
[345348148,1734168641790,-500.0,0.00021249,3]
[345348149,1734168641800,-500.0,0.00021249,3]
[345348150,1734168641809,-500.0,0.00021249,3]
[345348151,1734168641819,-500.0,0.00021249,3]
[345348152,1734168641829,-500.0,0.00021249,3]
[345348153,1734168641838,-257.62,0.00021249,3]
[345348154,1734168641847,-500.0,0.00021249,3]
[345348155,1734168641857,-500.0,0.00021249,3]
[345348156,1734168641866,-207.97164642,0.00021249,3]
[345348157,1734168641875,-500.0,0.00021249,3]
[345348158,1734168641885,-500.0,0.00021249,3]
[345348159,1734168641896,-500.0,0.00021249,3]
[345348160,1734168641906,-500.0,0.00021249,3]
[345348161,1734168641915,-500.0,0.00021249,3]
[345348162,1734168641925,-500.0,0.00021249,3]
[345348163,1734168641934,-500.0,0.00021249,3]
[345348164,1734168641944,-500.0,0.00021249,3]
[345348165,1734168641953,-500.0,0.00021249,3]
[345348166,1734168641963,-500.0,0.00021249,3]
[345348167,1734168641972,-500.0,0.00021249,3]
[345348168,1734168641982,-351.56,0.00021249,3]
[345348169,1734168641992,-500.72178694,0.00021249,3]
[345348170,1734168642001,-500.0,0.00021249,3]
[345348171,1734168642011,-500.0,0.00021249,3]
[345348172,1734168642020,-500.0,0.00021249,3]
[345348173,1734168642030,-416.94,0.00021249,3]
[345348174,1734168642039,-500.0,0.00021249,3]
[345348175,1734168642049,-227.54,0.00021249,3]
[345348176,1734168642058,-500.0,0.00021249,3]
[345348177,1734168642067,-500.0,0.00021249,3]
[345348178,1734168642077,-320.7,0.00021249,3]
[345348179,1734168642087,-500.0,0.00021249,3]
[345348180,1734168642096,-500.0,0.00021249,3]
[345348181,1734168642106,-257.7725316,0.00021249,3]
[345348182,1734168642118,-393.71610867,0.00021249,3]
[345348183,1734168642128,-500.0,0.00021249,3]
[345348184,1734168642137,-411.06,0.00021249,3]
[345348185,1734168642148,-370.09,0.00021249,3]
[345348186,1734168642158,-609.80643876,0.00021249,3]
[345348187,1734168642167,-160614.22151017,0.0002125,4]
[345348188,1734168642176,-6283.1812228,0.0002125,2]
[345348189,1734168642186,-4633.6645752,0.0002125,2]
[345348190,1734168642197,-731.0,0.0002125,2]
[345348191,1734168642207,-212807.0,0.0002125,2]
[345348192,1734168642217,-16363334.59167323,0.0002125,2]
[345348193,1734168642374,-1002.63526089,0.0002125,2]
[345348194,1734168642438,-337.42658426,0.0002125,2]
[345348195,1734168642450,-41912.37409462,0.0002125,2]
[345348198,1734168643764,-31.55588617,0.00019178,5]
[345348199,1734168643886,-968.44411383,0.00019178,5]
[345348200,1734168643897,-47270.00397436,0.0002125,2]
[345348240,1734168646121,-1000.0,0.00019452,6]
[345348241,1734168646130,-1000.0,0.00019726,7]
[345348242,1734168646141,-1000.0,0.0002,8]
[345348243,1734168646152,-1000.0,0.00020273,9]
[345348244,1734168646162,-1000.0,0.00020547,10]
[345348245,1734168646171,-1000.0,0.00020821,11]
[345348246,1734168646182,-651.21941749,0.00020866,2]
[345348247,1734168734574,413.61953245,0.00017414,2]
[345348249,1734169003622,401.98,0.00010137,2]
[345348250,1734169170941,220.04,0.00013699,2]
[345348253,1734169641140,-401.98,0.00016813,2]
[345348254,1734169641161,-740.85,0.00018184,2]
[345348255,1734169641183,-150.0,0.0001911,2]
[345348256,1734169641204,-150.0,0.0001911,2]
[345348257,1734169641225,-150.59129191,0.0001911,2]
[345348258,1734169641245,-150.39171893,0.0001911,2]
[345348259,1734169641267,-151.3551902,0.0001911,2]
[345348260,1734169641287,-150.0,0.0001911,2]
[345348261,1734169641308,-1000.0,0.00019178,5]
[345348262,1734169641328,-150.0,0.00019228,4]
[345348263,1734169641509,-150.0,0.00019346,4]
[345348264,1734169641532,-5.89917021,0.00019452,6]
[345348265,1734169646118,-994.10082979,0.00019452,6]
[345348266,1734169646141,-150.0,0.00019463,4]
[345348267,1734169646161,-200.0,0.00019529,2]
[345348268,1734169646181,-150.0,0.00019534,4]
[345348269,1734169646202,-295.5,0.00019554,2]
[345348270,1734169646225,-300.0,0.00019577,2]
[345348271,1734169646248,-1000.0,0.00019578,2]
[345348272,1734169646268,-150.0,0.00019581,4]
[345348273,1734169646288,-89.6458388,0.00019699,4]
[345348274,1734169748102,-300.0,0.00017414,2]
[345348275,1734169748124,-500.0,0.00017414,2]
[345348279,1734169832314,-806.35445062,0.00019178,5]
[345348280,1734169832339,-193.64554938,0.00019178,5]
[345348281,1734169832348,-473.13244762,0.00019452,6]
[345348282,1734169832359,-526.86755238,0.00019452,6]
[345348283,1734169832368,-60.3541612,0.00019699,4]
[345348284,1734169832378,-152.42,0.00019725,2]
[345348285,1734169832387,-1000.0,0.00019726,7]
[345348286,1734169832397,-6.01075052,0.00019743,2]
[345348287,1734169832411,-173.14924948,0.00019743,2]
[345348288,1734169832420,-1898.83139831,0.00019749,2]
[345348289,1734169832458,-1414.54860169,0.00019749,2]
[345348290,1734169832467,-150.0,0.00019817,4]
[345348291,1734169832477,-150.0,0.00019935,4]
[345348292,1734169832487,-150.0,0.00019959,4]
[345348293,1734169832496,-1000.0,0.0002,8]
[345348294,1734169832505,-117.18324223,0.00020026,2]
[345348299,1734169838221,-1542.66675777,0.00020026,2]
[345348300,1734169838232,-150.0,0.00020053,4]
[345348301,1734169838241,-150.0,0.0002011,2]
[345348302,1734169838251,-250.0,0.00020148,2]
[345348303,1734169838261,-150.0,0.00020171,4]
[345348304,1734169838270,-250.0,0.00020174,2]
[345348305,1734169838279,-268.026,0.0002019,2]
[345348306,1734169838289,-203.83,0.00020227,2]
[345348307,1734169838299,-300.0,0.00020272,2]
[345348308,1734169838307,-471.25196031,0.00020273,9]
[345348309,1734169838319,-528.74803969,0.00020273,9]
[345348310,1734169838328,-150.0,0.00020289,4]
[345348311,1734169838337,-537.58,0.00020309,2]
[345348312,1734169838346,-150.73,0.00020309,2]
[345348313,1734169838356,-988.84,0.00020322,2]
[345348314,1734169838365,-1019.76,0.0002033,2]
[345348315,1734169838373,-150.56,0.0002037,2]
[345348316,1734169838383,-150.0,0.00020384,4]
[345348317,1734169838391,-150.0,0.00020407,4]
[345348318,1734169838401,-740.85,0.00020448,2]
[345348319,1734169838411,-150.0,0.00020525,4]
[345348320,1734169838421,-1000.0,0.00020547,10]
[345348321,1734169838430,-251.0,0.00020619,2]
[345348322,1734169838440,-150.0,0.00020643,4]
[345348323,1734169838449,-987.71,0.00020697,2]
[345348324,1734169838459,-150.0,0.00020761,4]
[345348325,1734169838469,-150.0,0.00020808,4]
[345348326,1734169838479,-670.41737177,0.00020821,11]
[345348327,1734169838489,-1000.0,0.00020865,2]
[345348328,1734169838498,-1000.0,0.00020865,4]
[345348330,1734169838508,-1000.0,0.00020865,6]
[345348332,1734169838518,-1000.0,0.00020865,8]
[345348334,1734169838527,-150.0,0.00020879,4]
[345348336,1734169838537,-1000.0,0.00020995,2]
[345348338,1734169838546,-150.0,0.00020997,4]
[345348339,1734169838555,-1478.90714,0.0002104,2]
[345348341,1734169838564,-500.0,0.00021079,2]
[345348343,1734169838573,-1896.77955712,0.0002108,2]
[345348349,1734169838615,-103.22044288,0.0002108,2]
[345348351,1734169838624,-500.0,0.0002108,2]
[345348353,1734169838634,-150.0,0.00021115,4]
[345348355,1734169838644,-1500.0,0.00021131,2]
[345348357,1734169838653,-5000.0,0.0002115,2]
[345348359,1734169838664,-578.959,0.0002115,2]
[345348361,1734169838677,-3714.60481496,0.0002115,2]
[345348363,1734169838689,-518.0,0.000212,9]
[345348365,1734169838699,-325.96,0.000212,2]
[345348367,1734169838709,-164.24092206,0.00021233,4]
[345348369,1734169838718,-173.84617448,0.00021233,4]
[345348370,1734169838728,-151.035924,0.00021233,4]
[345348372,1734169838738,-500.0,0.00021248,3]
[345348375,1734169838753,-500.0,0.00021248,3]
[345348377,1734169838762,-500.0,0.00021248,3]
[345348378,1734169838772,-500.0,0.00021248,3]
[345348380,1734169838782,-500.0,0.00021248,3]
[345348382,1734169838793,-500.0,0.00021248,3]
[345348385,1734169838803,-500.0,0.00021248,3]
[345348386,1734169838812,-500.0,0.00021248,3]
[345348389,1734169838822,-503.91,0.00021248,3]
[345348391,1734169838832,-502.25006538,0.00021248,3]
[345348392,1734169838841,-500.0,0.00021248,3]
[345348394,1734169838851,-500.0,0.00021248,3]
[345348397,1734169838860,-500.0,0.00021248,3]
[345348399,1734169838869,-500.0,0.00021248,3]
[345348401,1734169838879,-500.0,0.00021248,3]
[345348403,1734169838889,-500.0,0.00021248,3]
[345348405,1734169838898,-500.0,0.00021248,3]
[345348407,1734169838907,-500.0,0.00021248,3]
[345348408,1734169838922,-500.72178694,0.00021248,3]
[345348411,1734169838932,-500.0,0.00021248,3]
[345348412,1734169838944,-500.0,0.00021248,3]
[345348415,1734169838954,-500.0,0.00021248,3]
[345348417,1734169838964,-500.0,0.00021248,3]
[345348419,1734169838973,-393.71610867,0.00021248,3]
[345348420,1734169838983,-1390.6968,0.00021249,2]
[345348422,1734169838992,-500.0,0.00021249,3]
[345348424,1734169839002,-283.83588437,0.00021249,3]
[345348427,1734169839012,-500.0,0.00021249,3]
[345348428,1734169839021,-533.82,0.00021249,3]
[345348431,1734169839031,-988.53,0.00021249,2]
[345348433,1734169839041,-500.0,0.00021249,3]
[345348435,1734169839050,-500.0,0.00021249,3]
[345348436,1734169839059,-500.0,0.00021249,3]
[345348438,1734169839070,-500.0,0.00021249,3]
[345348440,1734169839079,-500.0,0.00021249,3]
[345348442,1734169839088,-500.0,0.00021249,3]
[345348444,1734169839097,-521.65342929,0.00021249,3]
[345348446,1734169839106,-500.0,0.00021249,3]
[345348448,1734169839115,-500.0,0.00021249,3]
[345348450,1734169839124,-500.0,0.00021249,3]
[345348452,1734169839133,-500.0,0.00021249,3]
[345348454,1734169839142,-500.0,0.00021249,3]
[345348456,1734169839152,-500.0,0.00021249,3]
[345348458,1734169839167,-622.86,0.00021249,3]
[345348460,1734169839175,-626.79,0.00021249,2]
[345348462,1734169839185,-500.0,0.00021249,3]
[345348464,1734169839194,-500.0,0.00021249,3]
[345348466,1734169839204,-500.0,0.00021249,3]
[345348468,1734169839213,-500.0,0.00021249,3]
[345348470,1734169839223,-479.63,0.00021249,3]
[345348472,1734169839232,-500.0,0.00021249,3]
[345348474,1734169839242,-500.0,0.00021249,3]
[345348476,1734169839251,-559.29041351,0.00021249,3]
[345348478,1734169839261,-500.0,0.00021249,3]
[345348480,1734169839271,-500.0,0.00021249,3]
[345348482,1734169839280,-500.0,0.00021249,3]
[345348484,1734169839289,-500.0,0.00021249,3]
[345348486,1734169839298,-500.0,0.00021249,3]
[345348488,1734169839308,-500.0,0.00021249,3]
[345348491,1734169839318,-500.0,0.00021249,3]
[345348492,1734169839327,-500.0,0.00021249,3]
[345348494,1734169839337,-500.0,0.00021249,3]
[345348496,1734169839347,-500.0,0.00021249,3]
[345348498,1734169839356,-592.78,0.00021249,3]
[345348501,1734169839365,-500.0,0.00021249,3]
[345348503,1734169839375,-158.62,0.00021249,3]
[345348505,1734169839384,-462.82,0.00021249,3]
[345348507,1734169839394,-631.81889266,0.00021249,3]
[345348509,1734169839403,-500.0,0.00021249,3]
[345348511,1734169839415,-500.0,0.00021249,3]
[345348513,1734169839423,-500.0,0.00021249,3]
[345348515,1734169839433,-500.0,0.00021249,3]
[345348517,1734169839443,-500.0,0.00021249,3]
[345348518,1734169839452,-500.0,0.00021249,3]
[345348521,1734169839462,-500.0,0.00021249,3]
[345348523,1734169839471,-500.0,0.00021249,3]
[345348525,1734169839480,-500.0,0.00021249,3]
[345348526,1734169839489,-500.0,0.00021249,3]
[345348528,1734169839499,-500.0,0.00021249,3]
[345348530,1734169839508,-500.0,0.00021249,3]
[345348532,1734169839518,-500.0,0.00021249,3]
[345348534,1734169839527,-500.0,0.00021249,3]
[345348536,1734169839536,-500.0,0.00021249,3]
[345348538,1734169839546,-500.0,0.00021249,3]
[345348540,1734169839555,-500.0,0.00021249,3]
[345348542,1734169839565,-500.0,0.00021249,3]
[345348544,1734169839574,-500.0,0.00021249,3]
[345348546,1734169839583,-500.0,0.00021249,3]
[345348548,1734169839593,-500.0,0.00021249,3]
[345348550,1734169839602,-500.0,0.00021249,3]
[345348552,1734169839611,-500.0,0.00021249,3]
[345348554,1734169839620,-500.0,0.00021249,3]
[345348556,1734169839630,-500.0,0.00021249,3]
[345348558,1734169839639,-500.0,0.00021249,3]
[345348560,1734169839648,-500.0,0.00021249,3]
[345348562,1734169839657,-500.0,0.00021249,3]
[345348578,1734169839804,-500.0,0.00021249,3]
[345348580,1734169839815,-211.02,0.00021249,3]
[345348582,1734169839825,-500.0,0.00021249,3]
[345348584,1734169839834,-500.0,0.00021249,3]
[345348586,1734169839844,-500.0,0.00021249,3]
[345348588,1734169839853,-500.0,0.00021249,3]
[345348590,1734169839863,-500.0,0.00021249,3]